[Event "ARM-ch Rapid 2019"]
[Site "Yerevan"]
[Date "2019.01.23"]
[Round "6.2"]
[White "Martirosyan, Haik M."]
[Black "Chibukhchian, Artur"]
[Result "1-0"]
[WhiteElo "2607"]
[BlackElo "2384"]
[Annotator "RC"]
[PlyCount "40"]
[EventDate "2019.01.22"]
[EventType "tourn"]
[EventCountry "ARM"]
[TimeControl "40/5400+30:1800+30"]
[WhiteClock "0:00:44"]
[BlackClock "0:10:02"]

1. e4 {[%emt 1:15:15]} c5 {[%emt 1:23:41]} 2. Nf3 {[%emt 0:00:24]} Nc6 {[%emt 0:00:22]} 3. Bb5 {[%emt 0:00:26]} e6 {[%emt 0:00:35]} 4. O-O {[%emt 0:00:37]} Nge7 {[%emt 0:00:21]} 5. Re1 {[%emt 0:00:28]} a6 {[%emt 0:00:21]} 6. Bf1 {[%emt 0:00:26]} d5 {[%emt 0:00:26]} 7. exd5 {[%emt 0:00:24]} Nxd5 {[%emt 0:00:22]} 8. d4 {[%emt 0:01:05]} Nf6 {[%emt 0:00:33]} 9. Be3 {[%emt 0:01:26]} b6 {[%emt 0:01:18]} 10. dxc5 {[%emt 0:00:47]} Bxc5 {[%emt 0:01:26]} 11. Qxd8+ {[%emt 0:00:33]} Kxd8 {[%emt 0:01:36]} 12. Bxc5 {[%emt 0:00:23]} bxc5 {[%emt 0:00:21]} 13. Nbd2 {[%emt 0:00:43]} Ke7 {[%emt 0:00:59]} 14. Nb3 {[%emt 0:01:38]} Nd7 {[%emt 0:01:16]} 15. Rad1 {[%emt 0:00:35]} Bb7 {[%emt 0:00:38]} 16. Ng5 {[%emt 0:00:45]} Rac8 {[%emt 0:00:48]} 17. Nxf7 {[%emt 0:00:28]} Rhf8 {[%emt 0:01:01]} 18. Bc4 {[%emt 0:02:48]} Rxf7 {[%emt 0:00:36]} 19. Bxe6 {[%emt 0:00:22]} Nde5 {[%emt 0:01:41]} 20. Bxf7 {[%emt 0:00:25]} Kxf7 {[%emt 0:00:55]} 1-0

[Event "ARM-ch Rapid 2019"]
[Site "Yerevan"]
[Date "2019.01.23"]
[Round "6.9"]
[White "Hayrapetyan, Arman Ash."]
[Black "Vardanyan, Haik A."]
[Result "1-0"]
[WhiteElo "2375"]
[BlackElo "1953"]
[PlyCount "101"]
[EventDate "2019.01.22"]
[EventType "tourn"]
[EventCountry "ARM"]
[TimeControl "40/5400+30:1800+30"]
[WhiteClock "0:00:41"]
[BlackClock "0:01:26"]

1. e4 {[%emt 1:15:27]} e6 {[%emt 1:15:24]} 2. d4 {[%emt 0:00:40]} d5 {[%emt 0:00:22]} 3. exd5 {[%emt 0:00:22]} exd5 {[%emt 0:00:21]} 4. c4 {[%emt 0:00:21]} c6 {[%emt 0:00:21]} 5. Nc3 {[%emt 0:00:22]} Nf6 {[%emt 0:00:21]} 6. Bd3 {[%emt 0:00:23]} Be7 {[%emt 0:00:26]} 7. Nf3 {[%emt 0:00:23]} O-O {[%emt 0:00:22]} 8. h3 {[%emt 0:00:28]} dxc4 {[%emt 0:00:54]} 9. Bxc4 {[%emt 0:00:21]} Bf5 {[%emt 0:00:54]} 10. O-O {[%emt 0:00:23]} Nbd7 {[%emt 0:00:22]} 11. Re1 {[%emt 0:00:23]} Nb6 {[%emt 0:00:53]} 12. Bb3 {[%emt 0:00:21]} Nbd5 {[%emt 0:01:26]} 13. Ne5 {[%emt 0:00:23]} Re8 {[%emt 0:05:46]} 14. Bg5 {[%emt 0:00:42]} h6 {[%emt 0:00:55]} 15. Bh4 {[%emt 0:00:22]} Be6 {[%emt 0:01:47]} 16. Qd2 {[%emt 0:12:41]} Qc8 {[%emt 0:02:08]} 17. Rad1 {[%emt 0:00:43]} Nxc3 {[%emt 0:00:56]} 18. bxc3 {[%emt 0:00:23]} Bxb3 {[%emt 0:00:27]} 19. axb3 {[%emt 0:00:22]} Qf5 {[%emt 0:01:21]} 20. g4 {[%emt 0:01:01]} Qh7 {[%emt 0:00:50]} 21. Bxf6 {[%emt 0:01:37]} Bxf6 {[%emt 0:00:24]} 22. f4 {[%emt 0:00:21]} Rad8 {[%emt 0:00:52]} 23. Kg2 {[%emt 0:00:28]} g5 {[%emt 0:00:52]} 24. Nd7 {[%emt 0:02:34]} Qg7 {[%emt 0:00:22]} 25. Rxe8+ {[%emt 0:00:22]} Rxe8 {[%emt 0:00:21]} 26. f5 {[%emt 0:00:23]} Re7 {[%emt 0:00:32]} 27. Nxf6+ {[%emt 0:00:47]} Qxf6 {[%emt 0:00:30]} 28. Re1 {[%emt 0:00:30]} Qd6 {[%emt 0:00:35]} 29. Rxe7 {[%emt 0:00:22]} Qxe7 {[%emt 0:00:21]} 30. Kf3 {[%emt 0:00:20]} Qd6 {[%emt 0:00:27]} 31. c4 {[%emt 0:00:26]} b5 {[%emt 0:00:29]} 32. Ke4 {[%emt 0:00:28]} bxc4 {[%emt 0:00:43]} 33. bxc4 {[%emt 0:00:21]} Qe7+ {[%emt 0:00:22]} 34. Kd3 {[%emt 0:00:22]} Qa3+ {[%emt 0:00:21]} 35. Qc3 {[%emt 0:00:22]} Qd6 {[%emt 0:00:36]} 36. Kc2 {[%emt 0:00:46]} Kf8 {[%emt 0:00:59]} 37. Kb3 {[%emt 0:00:25]} Ke8 {[%emt 0:01:07]} 38. Qe3+ {[%emt 0:00:26]} Kd7 {[%emt 0:00:46]} 39. Qe5 {[%emt 0:00:30]} f6 {[%emt 0:00:37]} 40. Qxd6+ {[%emt 0:01:03]} Kxd6 {[%emt 0:00:21]} 41. Ka4 {[%emt 0:30:21]} Kc7 {[%emt 0:30:28]} 42. Ka5 {[%emt 0:00:27]} Kb7 {[%emt 0:00:21]} 43. d5 {[%emt 0:00:57]} cxd5 {[%emt 0:00:24]} 44. cxd5 {[%emt 0:00:20]} Kc7 {[%emt 0:00:33]} 45. Ka6 {[%emt 0:00:21]} Kd6 {[%emt 0:00:22]} 46. Kxa7 {[%emt 0:00:21]} Kxd5 {[%emt 0:00:21]} 47. Kb7 {[%emt 0:00:21]} Ke5 {[%emt 0:00:54]} 48. Kc6 {[%emt 0:00:28]} Kf4 {[%emt 0:01:41]} 49. Kd6 {[%emt 0:00:22]} h5 {[%emt 0:01:01]} 50. gxh5 {[%emt 0:00:21]} Kxf5 {[%emt 0:00:21]} 51. Kd5 {[%emt 0:00:21]} 1-0

[Event "ARM-ch Rapid 2019"]
[Site "Yerevan"]
[Date "2019.01.23"]
[Round "6.10"]
[White "Babujian, Levon"]
[Black "Vardanian, Haik V."]
[Result "1-0"]
[WhiteElo "2488"]
[BlackElo "2234"]
[PlyCount "99"]
[EventDate "2019.01.22"]
[EventType "tourn"]
[EventCountry "ARM"]
[TimeControl "40/5400+30:1800+30"]
[WhiteClock "0:00:12"]
[BlackClock "0:09:48"]

1. d4 {[%emt 1:15:12]} Nf6 {[%emt 1:15:16]} 2. Bg5 {[%emt 0:00:21]} d5 {[%emt 0:00:30]} 3. Bxf6 {[%emt 0:00:23]} exf6 {[%emt 0:00:24]} 4. e3 {[%emt 0:00:22]} Bd6 {[%emt 0:01:16]} 5. c4 {[%emt 0:00:21]} dxc4 {[%emt 0:00:34]} 6. Bxc4 {[%emt 0:00:26]} f5 {[%emt 0:00:41]} 7. Nc3 {[%emt 0:00:24]} O-O {[%emt 0:00:24]} 8. Nf3 {[%emt 0:00:30]} Nd7 {[%emt 0:00:39]} 9. O-O {[%emt 0:00:29]} Nf6 {[%emt 0:00:43]} 10. Rc1 {[%emt 0:00:21]} h6 {[%emt 0:01:06]} 11. Nb5 {[%emt 0:00:23]} c6 {[%emt 0:00:53]} 12. Nxd6 {[%emt 0:00:22]} Qxd6 {[%emt 0:00:22]} 13. Ne5 {[%emt 0:00:23]} Be6 {[%emt 0:00:46]} 14. Qb3 {[%emt 0:00:22]} Rab8 {[%emt 0:01:07]} 15. Rfd1 {[%emt 0:00:40]} Nd5 {[%emt 0:01:23]} 16. a3 {[%emt 0:01:04]} Nb6 {[%emt 0:02:16]} 17. Bxe6 {[%emt 0:00:29]} fxe6 {[%emt 0:00:53]} 18. Qc3 {[%emt 0:00:38]} Nd7 {[%emt 0:01:13]} 19. Nc4 {[%emt 0:01:00]} Qd5 {[%emt 0:01:10]} 20. f3 {[%emt 0:00:37]} Nf6 {[%emt 0:01:00]} 21. Ne5 {[%emt 0:00:30]} Rfd8 {[%emt 0:00:30]} 22. b4 {[%emt 0:00:30]} Nd7 {[%emt 0:00:55]} 23. Ng6 {[%emt 0:00:29]} Kf7 {[%emt 0:00:46]} 24. Nf4 {[%emt 0:00:31]} Qd6 {[%emt 0:00:24]} 25. Qb3 {[%emt 0:00:28]} a6 {[%emt 0:00:59]} 26. a4 {[%emt 0:00:22]} g5 {[%emt 0:01:14]} 27. Nd3 {[%emt 0:00:21]} Qd5 {[%emt 0:00:28]} 28. Qb2 {[%emt 0:00:51]} Nb6 {[%emt 0:01:09]} 29. Nc5 {[%emt 0:01:07]} Nc4 {[%emt 0:01:42]} 30. Qe2 {[%emt 0:00:29]} Nb6 {[%emt 0:01:07]} 31. b5 {[%emt 0:00:57]} axb5 {[%emt 0:00:34]} 32. axb5 {[%emt 0:00:21]} cxb5 {[%emt 0:01:05]} 33. Qxb5 {[%emt 0:00:33]} Nd7 {[%emt 0:00:37]} 34. e4 {[%emt 0:00:23]} Qc6 {[%emt 0:01:30]} 35. Qb3 {[%emt 0:00:21]} f4 {[%emt 0:01:27]} 36. Nd3 {[%emt 0:01:07]} Qd6 {[%emt 0:00:28]} 37. Rc4 {[%emt 0:01:15]} Rdc8 {[%emt 0:00:23]} 38. Rb4 {[%emt 0:01:09]} b6 {[%emt 0:00:30]} 39. Nf2 {[%emt 0:00:50]} Rc7 {[%emt 0:00:30]} 40. h4 {[%emt 0:00:28]} Rbc8 {[%emt 0:00:23]} 41. hxg5 {[%emt 0:30:23]} hxg5 {[%emt 0:30:21]} 42. Rb5 {[%emt 0:00:23]} Rc3 {[%emt 0:00:36]} 43. Qb1 {[%emt 0:00:36]} Qa3 {[%emt 0:00:34]} 44. Nd3 {[%emt 0:02:17]} Kg6 {[%emt 0:00:20]} 45. d5 {[%emt 0:00:58]} Qa4 {[%emt 0:00:46]} 46. dxe6 {[%emt 0:00:37]} Nc5 {[%emt 0:00:48]} 47. Nxc5 {[%emt 0:00:36]} R8xc5 {[%emt 0:00:26]} 48. e5+ {[%emt 0:00:36]} Kh6 {[%emt 0:00:21]} 49. Rxb6 {[%emt 0:00:33]} Qc2 {[%emt 0:00:49]} 50. Qxc2 {[%emt 0:00:24]} 1-0

[Event "ARM-ch Rapid 2019"]
[Site "Yerevan"]
[Date "2019.01.23"]
[Round "7.6"]
[White "Alaverdyan, Gevorg"]
[Black "Yegiazarian, Arsen"]
[Result "1/2-1/2"]
[WhiteElo "2261"]
[BlackElo "2399"]
[PlyCount "101"]
[EventDate "2019.01.22"]
[EventType "tourn"]
[EventCountry "ARM"]
[TimeControl "40/5400+30:1800+30"]
[WhiteClock "0:00:50"]
[BlackClock "0:00:22"]

1. Nf3 {[%emt 1:15:13]} c5 {[%emt 1:15:12]} 2. g3 {[%emt 0:00:23]} Nc6 {[%emt 0:00:23]} 3. Bg2 {[%emt 0:00:22]} g6 {[%emt 0:00:22]} 4. c3 {[%emt 0:00:22]} Bg7 {[%emt 0:00:23]} 5. O-O {[%emt 0:00:24]} d5 {[%emt 0:00:25]} 6. d4 {[%emt 0:00:22]} cxd4 {[%emt 0:00:25]} 7. cxd4 {[%emt 0:00:22]} e6 {[%emt 0:00:32]} 8. Nc3 {[%emt 0:00:25]} Nge7 {[%emt 0:00:22]} 9. e3 {[%emt 0:02:49]} O-O {[%emt 0:00:24]} 10. b3 {[%emt 0:01:05]} b6 {[%emt 0:00:23]} 11. Ba3 {[%emt 0:00:27]} Ba6 {[%emt 0:01:13]} 12. Re1 {[%emt 0:00:22]} Qd7 {[%emt 0:00:41]} 13. Rc1 {[%emt 0:01:10]} Rfd8 {[%emt 0:01:05]} 14. Bf1 {[%emt 0:00:50]} Bxf1 {[%emt 0:00:26]} 15. Rxf1 {[%emt 0:00:22]} Rac8 {[%emt 0:00:31]} 16. Qd3 {[%emt 0:00:29]} Qb7 {[%emt 0:00:23]} 17. Rc2 {[%emt 0:00:30]} Nf5 {[%emt 0:01:34]} 18. Rfc1 {[%emt 0:00:32]} e5 {[%emt 0:01:09]} 19. dxe5 {[%emt 0:05:13]} d4 {[%emt 0:05:19]} 20. Nd5 {[%emt 0:03:11]} Rxd5 {[%emt 0:00:38]} 21. e4 {[%emt 0:00:31]} Rdd8 {[%emt 0:04:31]} 22. exf5 {[%emt 0:00:25]} Nxe5 {[%emt 0:00:26]} 23. Nxe5 {[%emt 0:02:38]} Bxe5 {[%emt 0:00:22]} 24. Re2 {[%emt 0:03:04]} Rxc1+ {[%emt 0:00:39]} 25. Bxc1 {[%emt 0:00:20]} Bf6 {[%emt 0:00:29]} 26. g4 {[%emt 0:00:47]} Qd5 {[%emt 0:01:45]} 27. g5 {[%emt 0:00:23]} Bg7 {[%emt 0:00:43]} 28. f6 {[%emt 0:00:22]} Bf8 {[%emt 0:00:21]} 29. Bf4 {[%emt 0:00:40]} h6 {[%emt 0:00:42]} 30. h4 {[%emt 0:00:31]} Rc8 {[%emt 0:00:29]} 31. Bd2 {[%emt 0:00:22]} Qd7 {[%emt 0:00:58]} 32. Qe4 {[%emt 0:00:37]} Rd8 {[%emt 0:00:45]} 33. Kg2 {[%emt 0:00:26]} Qb5 {[%emt 0:00:34]} 34. h5 {[%emt 0:00:30]} d3 {[%emt 0:01:57]} 35. Re1 {[%emt 0:00:21]} Kh7 {[%emt 0:00:41]} 36. hxg6+ {[%emt 0:00:30]} fxg6 {[%emt 0:00:30]} 37. a4 {[%emt 0:00:21]} Qxb3 {[%emt 0:00:21]} 38. Qb7+ {[%emt 0:00:29]} Kg8 {[%emt 0:00:20]} 39. gxh6 {[%emt 0:00:56]} Qf7 {[%emt 0:00:27]} 40. Qxf7+ {[%emt 0:00:32]} Kxf7 {[%emt 0:00:21]} 41. h7 {[%emt 0:30:21]} Bc5 {[%emt 0:30:28]} 42. Rh1 {[%emt 0:00:37]} Rh8 {[%emt 0:00:21]} 43. Bc3 {[%emt 0:00:30]} d2 {[%emt 0:00:46]} 44. Kf3 {[%emt 0:00:25]} g5 {[%emt 0:00:58]} 45. Ke2 {[%emt 0:00:25]} Kg6 {[%emt 0:00:32]} 46. Bxd2 {[%emt 0:00:24]} Rxh7 {[%emt 0:00:23]} 47. Rxh7 {[%emt 0:00:23]} Kxh7 {[%emt 0:00:21]} 48. Bxg5 {[%emt 0:00:21]} Kg6 {[%emt 0:00:20]} 49. Bh4 {[%emt 0:00:44]} a6 {[%emt 0:00:25]} 50. Kd3 {[%emt 0:00:50]} b5 {[%emt 0:00:25]} 51. Ke4 {[%emt 0:00:30]} 1/2-1/2

[Event "ARM-ch Rapid 2019"]
[Site "Yerevan"]
[Date "2019.01.23"]
[Round "7.7"]
[White "Chibukhchian, Artur"]
[Black "Gharagyozyan, Artur"]
[Result "1/2-1/2"]
[WhiteElo "2384"]
[BlackElo "2253"]
[PlyCount "145"]
[EventDate "2019.01.22"]
[EventType "tourn"]
[EventCountry "ARM"]
[TimeControl "40/5400+30:1800+30"]
[WhiteClock "0:01:53"]
[BlackClock "0:00:23"]

1. d4 {[%emt 1:15:47]} Nf6 {[%emt 1:15:19]} 2. c4 {[%emt 0:00:25]} e6 {[%emt 0:00:31]} 3. Nf3 {[%emt 0:00:26]} Bb4+ {[%emt 0:00:24]} 4. Bd2 {[%emt 0:00:23]} Be7 {[%emt 0:00:22]} 5. Nc3 {[%emt 0:00:30]} d5 {[%emt 0:00:22]} 6. Bg5 {[%emt 0:00:34]} c6 {[%emt 0:00:31]} 7. e3 {[%emt 0:00:26]} O-O {[%emt 0:00:26]} 8. Qc2 {[%emt 0:00:31]} Nbd7 {[%emt 0:00:26]} 9. a3 {[%emt 0:00:25]} b6 {[%emt 0:01:05]} 10. cxd5 {[%emt 0:00:51]} cxd5 {[%emt 0:00:29]} 11. Bd3 {[%emt 0:00:35]} Bb7 {[%emt 0:00:37]} 12. Ne5 {[%emt 0:02:55]} h6 {[%emt 0:00:54]} 13. Bf4 {[%emt 0:03:33]} Nxe5 {[%emt 0:00:28]} 14. Bxe5 {[%emt 0:00:28]} Rc8 {[%emt 0:00:39]} 15. O-O {[%emt 0:00:46]} Ne4 {[%emt 0:01:08]} 16. Bxe4 {[%emt 0:00:35]} dxe4 {[%emt 0:00:22]} 17. Rfc1 {[%emt 0:00:22]} Bd6 {[%emt 0:01:52]} 18. Bxd6 {[%emt 0:00:46]} Qxd6 {[%emt 0:00:24]} 19. Qa4 {[%emt 0:01:08]} a6 {[%emt 0:02:03]} 20. Ne2 {[%emt 0:01:13]} Kh7 {[%emt 0:00:54]} 21. h3 {[%emt 0:00:42]} f5 {[%emt 0:00:36]} 22. Qd1 {[%emt 0:03:29]} g5 {[%emt 0:00:40]} 23. Rxc8 {[%emt 0:00:25]} Rxc8 {[%emt 0:01:05]} 24. Rc1 {[%emt 0:01:00]} Rf8 {[%emt 0:00:23]} 25. Qc2 {[%emt 0:02:41]} Rf7 {[%emt 0:00:23]} 26. Qb1 {[%emt 0:00:47]} Kg7 {[%emt 0:01:12]} 27. b4 {[%emt 0:01:08]} f4 {[%emt 0:04:01]} 28. Qc2 {[%emt 0:00:30]} Bd5 {[%emt 0:00:00]} 29. Qa4 {[%emt 0:00:35]} b5 {[%emt 0:00:09]} 30. Qc2 {[%emt 0:00:21]} Bc4 {[%emt 0:00:31]} 31. Nc3 {[%emt 0:00:21]} fxe3 {[%emt 0:00:51]} 32. fxe3 {[%emt 0:00:23]} Qg3 {[%emt 0:01:48]} 33. Qxe4 {[%emt 0:00:21]} Qf2+ {[%emt 0:01:05]} 34. Kh2 {[%emt 0:00:26]} Qd2 {[%emt 0:00:31]} 35. Rc2 {[%emt 0:00:44]} Qe1 {[%emt 0:00:23]} 36. Qe5+ {[%emt 0:00:24]} Kg8 {[%emt 0:00:36]} 37. Ne4 {[%emt 0:01:23]} Qb1 {[%emt 0:01:45]} 38. Rf2 {[%emt 0:00:27]} Rxf2 {[%emt 0:00:51]} 39. Nxf2 {[%emt 0:00:21]} Qb2 {[%emt 0:00:44]} 40. Qf6 {[%emt 0:00:34]} Qxa3 {[%emt 0:00:41]} 41. Qg6+ {[%emt 0:30:29]} Kf8 {[%emt 0:30:24]} 42. Qxh6+ {[%emt 0:00:22]} Ke8 {[%emt 0:00:26]} 43. Qg6+ {[%emt 0:00:39]} Kd7 {[%emt 0:00:27]} 44. Qf7+ {[%emt 0:00:33]} Kd8 {[%emt 0:00:55]} 45. Qf8+ {[%emt 0:00:28]} Kc7 {[%emt 0:00:40]} 46. Ng4 {[%emt 0:00:32]} Bd5 {[%emt 0:00:45]} 47. Qe7+ {[%emt 0:00:30]} Kc8 {[%emt 0:00:26]} 48. Qe8+ {[%emt 0:00:34]} Kc7 {[%emt 0:00:24]} 49. Qe7+ {[%emt 0:00:28]} Kc8 {[%emt 0:00:23]} 50. Qxg5 {[%emt 0:00:24]} Qxb4 {[%emt 0:00:29]} 51. Qg8+ {[%emt 0:00:39]} Kc7 {[%emt 0:00:22]} 52. Qg7+ {[%emt 0:00:26]} Kc8 {[%emt 0:00:21]} 53. h4 {[%emt 0:00:29]} Qd2 {[%emt 0:00:55]} 54. Qg8+ {[%emt 0:00:34]} Kb7 {[%emt 0:00:27]} 55. Qf7+ {[%emt 0:00:28]} Kb6 {[%emt 0:00:22]} 56. Qf2 {[%emt 0:00:24]} Qc1 {[%emt 0:00:56]} 57. e4 {[%emt 0:00:38]} Bxe4 {[%emt 0:00:27]} 58. d5+ {[%emt 0:00:21]} Kb7 {[%emt 0:00:21]} 59. dxe6 {[%emt 0:00:27]} b4 {[%emt 0:00:33]} 60. Qf7+ {[%emt 0:00:31]} Qc7+ {[%emt 0:00:34]} 61. Qxc7+ {[%emt 0:00:42]} Kxc7 {[%emt 0:00:22]} 62. e7 {[%emt 0:00:25]} Bg6 {[%emt 0:00:21]} 63. Ne5 {[%emt 0:00:28]} Be8 {[%emt 0:00:21]} 64. g4 {[%emt 0:00:37]} Kd6 {[%emt 0:00:21]} 65. Nd3 {[%emt 0:00:28]} a5 {[%emt 0:00:26]} 66. h5 {[%emt 0:00:25]} Kxe7 {[%emt 0:00:23]} 67. Kg3 {[%emt 0:00:34]} b3 {[%emt 0:00:21]} 68. Nb2 {[%emt 0:00:31]} a4 {[%emt 0:00:21]} 69. Nc4 {[%emt 0:00:20]} Bb5 {[%emt 0:00:47]} 70. Na3 {[%emt 0:00:37]} Bd3 {[%emt 0:00:32]} 71. Kf4 {[%emt 0:00:29]} b2 {[%emt 0:00:44]} 72. Ke3 {[%emt 0:00:24]} b1=Q {[%emt 0:01:00]} 73. Nxb1 {[%emt 0:00:30]} 1/2-1/2

[Event "ARM-ch Rapid 2019"]
[Site "Yerevan"]
[Date "2019.01.23"]
[Round "7.8"]
[White "Manukyan, Sargis V."]
[Black "Hayrapetyan, Arman Ash."]
[Result "0-1"]
[WhiteElo "2282"]
[BlackElo "2375"]
[PlyCount "63"]
[EventDate "2019.01.22"]
[EventType "tourn"]
[EventCountry "ARM"]
[TimeControl "40/5400+30:1800+30"]
[WhiteClock "0:05:02"]
[BlackClock "0:00:20"]

1. Nf3 {[%emt 1:15:13]} Nf6 {[%emt 1:15:30]} 2. c4 {[%emt 0:00:21]} c5 {[%emt 0:00:26]} 3. Nc3 {[%emt 0:00:26]} Nc6 {[%emt 0:00:21]} 4. g3 {[%emt 0:00:22]} g6 {[%emt 0:00:32]} 5. Bg2 {[%emt 0:00:22]} d6 {[%emt 0:00:22]} 6. a3 {[%emt 0:00:27]} Bg7 {[%emt 0:00:23]} 7. Rb1 {[%emt 0:00:22]} a5 {[%emt 0:00:43]} 8. O-O {[%emt 0:00:25]} O-O {[%emt 0:00:21]} 9. d3 {[%emt 0:01:32]} h6 {[%emt 0:02:22]} 10. Ne1 {[%emt 0:01:49]} Qc7 {[%emt 0:04:02]} 11. Nc2 {[%emt 0:00:30]} b6 {[%emt 0:00:24]} 12. b4 {[%emt 0:04:02]} axb4 {[%emt 0:00:22]} 13. axb4 {[%emt 0:00:21]} Bb7 {[%emt 0:00:21]} 14. Bd2 {[%emt 0:03:41]} Kh7 {[%emt 0:02:08]} 15. Rb3 {[%emt 0:01:51]} Rfb8 {[%emt 0:01:01]} 16. Qb1 {[%emt 0:00:34]} Nd8 {[%emt 0:01:31]} 17. Bxb7 {[%emt 0:01:53]} Rxb7 {[%emt 0:00:21]} 18. bxc5 {[%emt 0:00:39]} bxc5 {[%emt 0:00:32]} 19. Rxb7 {[%emt 0:00:21]} Nxb7 {[%emt 0:00:21]} 20. Ne3 {[%emt 0:01:07]} e6 {[%emt 0:01:48]} 21. Nb5 {[%emt 0:00:23]} Qd7 {[%emt 0:01:11]} 22. Bc3 {[%emt 0:00:21]} d5 {[%emt 0:00:38]} 23. Bxf6 {[%emt 0:01:42]} Bxf6 {[%emt 0:00:22]} 24. cxd5 {[%emt 0:01:23]} exd5 {[%emt 0:00:22]} 25. Qb3 {[%emt 0:00:21]} Rd8 {[%emt 0:00:22]} 26. Ng2 {[%emt 0:01:12]} Na5 {[%emt 0:01:10]} 27. Qa4 {[%emt 0:00:27]} Nc6 {[%emt 0:00:22]} 28. Rc1 {[%emt 0:00:38]} Nd4 {[%emt 0:00:32]} 29. Rxc5 {[%emt 0:00:31]} Rb8 {[%emt 0:00:35]} 30. Nf4 {[%emt 0:01:03]} Rxb5 {[%emt 0:00:34]} 31. Nxd5 {[%emt 0:00:59]} Rb1+ {[%emt 0:00:29]} 32. Kg2 {[%emt 0:00:22]} 0-1

[Event "ARM-ch Rapid 2019"]
[Site "Yerevan"]
[Date "2019.01.23"]
[Round "8.8"]
[White "Yegiazarian, Arsen"]
[Black "Gharibyan, Mamikon"]
[Result "0-1"]
[WhiteElo "2399"]
[BlackElo "2318"]
[PlyCount "64"]
[EventDate "2019.01.22"]
[EventType "tourn"]
[EventCountry "ARM"]
[TimeControl "40/5400+30:1800+30"]
[WhiteClock "0:00:11"]
[BlackClock "0:00:20"]

1. d4 {[%emt 1:15:14]} Nf6 {[%emt 1:15:17]} 2. c4 {[%emt 0:00:28]} e6 {[%emt 0:00:25]} 3. Nc3 {[%emt 0:00:24]} Bb4 {[%emt 0:00:27]} 4. e3 {[%emt 0:00:24]} O-O {[%emt 0:01:10]} 5. Nge2 {[%emt 0:00:32]} d5 {[%emt 0:00:39]} 6. a3 {[%emt 0:00:21]} Be7 {[%emt 0:00:25]} 7. cxd5 {[%emt 0:00:23]} exd5 {[%emt 0:00:22]} 8. b4 {[%emt 0:00:29]} c6 {[%emt 0:00:45]} 9. Ng3 {[%emt 0:00:22]} Re8 {[%emt 0:01:30]} 10. Bd3 {[%emt 0:00:22]} Nbd7 {[%emt 0:05:06]} 11. O-O {[%emt 0:00:27]} Nf8 {[%emt 0:01:08]} 12. f3 {[%emt 0:01:02]} a5 {[%emt 0:00:43]} 13. b5 {[%emt 0:00:49]} c5 {[%emt 0:00:21]} 14. Nce2 {[%emt 0:03:43]} cxd4 {[%emt 0:02:02]} 15. exd4 {[%emt 0:00:48]} h5 {[%emt 0:01:48]} 16. Bd2 {[%emt 0:04:49]} Ne6 {[%emt 0:00:44]} 17. Nf5 {[%emt 0:00:38]} Bf8 {[%emt 0:00:32]} 18. Qe1 {[%emt 0:03:30]} Kh8 {[%emt 0:02:22]} 19. Qg3 {[%emt 0:01:41]} Nc5 {[%emt 0:01:38]} 20. Nh6 {[%emt 0:00:59]} gxh6 {[%emt 0:00:45]} 21. dxc5 {[%emt 0:00:23]} Bxc5+ {[%emt 0:00:28]} 22. Kh1 {[%emt 0:00:21]} Be3 {[%emt 0:01:05]} 23. Bxe3 {[%emt 0:00:45]} Rxe3 {[%emt 0:00:21]} 24. Rad1 {[%emt 0:00:25]} Qg8 {[%emt 0:00:52]} 25. Qd6 {[%emt 0:00:53]} Qg7 {[%emt 0:01:07]} 26. Nf4 {[%emt 0:00:51]} Bd7 {[%emt 0:00:42]} 27. Nxd5 {[%emt 0:01:12]} Re6 {[%emt 0:00:28]} 28. Qc5 {[%emt 0:00:32]} Re5 {[%emt 0:00:21]} 29. Be4 {[%emt 0:00:53]} Rg8 {[%emt 0:00:26]} 30. Rf2 {[%emt 0:01:01]} Be6 {[%emt 0:00:49]} 31. h3 {[%emt 0:00:36]} Nxe4 {[%emt 0:00:31]} 32. fxe4 {[%emt 0:00:23]} Rg5 {[%emt 0:00:30]} 0-1

[Event "ARM-ch Rapid 2019"]
[Site "Yerevan"]
[Date "2019.01.23"]
[Round "8.9"]
[White "Danielyan, Vahe"]
[Black "Chibukhchian, Artur"]
[Result "1-0"]
[WhiteElo "2186"]
[BlackElo "2384"]
[PlyCount "88"]
[EventDate "2019.01.22"]
[EventType "tourn"]
[EventCountry "ARM"]
[TimeControl "40/5400+30:1800+30"]
[WhiteClock "0:00:12"]
[BlackClock "0:01:05"]

1. e4 {[%emt 1:15:22]} c5 {[%emt 1:15:13]} 2. Nc3 {[%emt 0:00:29]} a6 {[%emt 0:00:23]} 3. g3 {[%emt 0:00:22]} b5 {[%emt 0:00:21]} 4. Bg2 {[%emt 0:00:21]} Bb7 {[%emt 0:00:20]} 5. Nge2 {[%emt 0:00:21]} e6 {[%emt 0:00:21]} 6. d4 {[%emt 0:00:21]} cxd4 {[%emt 0:00:21]} 7. Nxd4 {[%emt 0:00:20]} Qc7 {[%emt 0:00:21]} 8. O-O {[%emt 0:00:23]} Nc6 {[%emt 0:01:33]} 9. Re1 {[%emt 0:00:26]} Nxd4 {[%emt 0:03:39]} 10. Qxd4 {[%emt 0:00:21]} f6 {[%emt 0:00:20]} 11. Be3 {[%emt 0:01:50]} Ne7 {[%emt 0:03:06]} 12. a4 {[%emt 0:00:28]} Nc6 {[%emt 0:00:23]} 13. Qd2 {[%emt 0:00:28]} b4 {[%emt 0:00:23]} 14. Ne2 {[%emt 0:00:59]} Be7 {[%emt 0:00:31]} 15. Red1 {[%emt 0:01:09]} Rd8 {[%emt 0:01:10]} 16. c3 {[%emt 0:00:22]} Na5 {[%emt 0:01:10]} 17. Qd3 {[%emt 0:02:03]} Nc4 {[%emt 0:01:30]} 18. cxb4 {[%emt 0:00:35]} Nxe3 {[%emt 0:00:25]} 19. Qxe3 {[%emt 0:00:48]} Bxb4 {[%emt 0:00:21]} 20. Rac1 {[%emt 0:00:23]} Qa5 {[%emt 0:00:23]} 21. Rc4 {[%emt 0:01:42]} Be7 {[%emt 0:00:30]} 22. Qa7 {[%emt 0:02:39]} Ba8 {[%emt 0:00:21]} 23. Rc7 {[%emt 0:01:04]} Qxa4 {[%emt 0:01:09]} 24. Nc3 {[%emt 0:00:22]} Qb4 {[%emt 0:01:10]} 25. Rdxd7 {[%emt 0:00:59]} Rxd7 {[%emt 0:00:26]} 26. Rxd7 {[%emt 0:00:29]} Kf7 {[%emt 0:01:06]} 27. e5 {[%emt 0:01:41]} Bxg2 {[%emt 0:00:31]} 28. exf6 {[%emt 0:00:25]} gxf6 {[%emt 0:00:33]} 29. Kxg2 {[%emt 0:00:21]} Re8 {[%emt 0:01:25]} 30. Qxa6 {[%emt 0:01:02]} Qxb2 {[%emt 0:00:25]} 31. Ne4 {[%emt 0:00:23]} Rd8 {[%emt 0:03:25]} 32. Nd6+ {[%emt 0:01:41]} Kf8 {[%emt 0:00:29]} 33. Rxd8+ {[%emt 0:00:28]} Bxd8 {[%emt 0:00:21]} 34. Qc6 {[%emt 0:00:21]} Bb6 {[%emt 0:02:33]} 35. Qe8+ {[%emt 0:03:38]} Kg7 {[%emt 0:00:24]} 36. Qf7+ {[%emt 0:00:40]} Kh6 {[%emt 0:00:22]} 37. Qf8+ {[%emt 0:00:36]} Kh5 {[%emt 0:00:28]} 38. Ne4 {[%emt 0:00:49]} Kg6 {[%emt 0:00:51]} 39. Qg8+ {[%emt 0:00:42]} Kf5 {[%emt 0:00:21]} 40. Qxh7+ {[%emt 0:00:32]} Ke5 {[%emt 0:00:21]} 41. Qh4 {[%emt 0:30:25]} Bd4 {[%emt 0:30:46]} 42. Qf4+ {[%emt 0:01:04]} Kd5 {[%emt 0:00:21]} 43. Qf3 {[%emt 0:00:25]} f5 {[%emt 0:00:46]} 44. Ng5+ {[%emt 0:00:36]} Ke5 {[%emt 0:00:30]} 1-0